bitfinex/quotes_ETHUSD_20240714
["timestamp","ask_amount","ask_price","bid_price","bid_amount"]
[1720956834140,3.94071343,3213.4,3213.1,0.05087277]
[1720956834436,2.3071,3213.3,3212.8,7.29]
[1720956834852,2.3071,3213.3,3213.2,0.05080135]
[1720956835051,2.3071,3213.3,3212.9,0.05099188]
[1720956835216,2.3071,3213.3,3212.8,7.29]
[1720956835415,2.3071,3213.3,3212.9,0.05099188]
[1720956838347,2.3071,3213.3,3212.7,19.47]
[1720956838521,2.3071,3213.3,3213.0,0.0509167]
[1720956838713,2.3071,3213.3,3212.5,9.6001]
[1720956838913,2.3071,3213.3,3213.1,0.05084652]
[1720956839150,2.3071,3213.3,3212.6,3.0]
[1720956839320,2.3071,3213.3,3213.2,0.05078302]
[1720956839529,2.3071,3213.3,3212.6,3.0]
[1720956839724,2.3071,3213.3,3213.2,0.05078302]
[1720956840038,2.3071,3213.3,3212.7,1.26001]
[1720956840236,2.3071,3213.3,3213.2,0.05078302]
[1720956840656,2.3071,3213.6,3213.2,0.05078302]
[1720956840949,2.3071,3213.6,3212.8,0.06224495]
[1720956841125,2.3071,3213.6,3213.3,0.05071952]
[1720956841319,2.3071,3213.6,3212.8,0.06224495]
[1720956842028,2.3071,3213.6,3212.9,0.05097355]
[1720956842750,2.3071,3213.6,3212.9,2.36107355]
[1720956842961,2.3071,3213.6,3213.0,0.3045711]
[1720956843330,2.3071,3213.6,3213.1,0.05084652]
[1720956845817,3.94095357,3213.6,3213.1,0.05084652]
[1720956846018,3.94095357,3213.6,3212.7,3.63404978]
[1720956846420,3.94095357,3213.6,3212.8,0.05103706]
[1720956846621,3.94095357,3213.6,3212.9,0.36850868]
[1720956846956,2.4256,3213.5,3213.0,0.05091003]
[1720956847520,2.4256,3213.5,3212.8,0.06223984]
[1720956847745,2.4256,3213.5,3213.1,0.05084652]
[1720956847947,2.4256,3213.5,3212.8,0.06223981]
[1720956848147,2.4256,3213.5,3213.2,0.05078302]
[1720956848518,2.4256,3213.5,3212.8,0.06223984]
[1720956848847,2.4256,3213.5,3213.3,0.05071952]
[1720956849034,2.4256,3213.5,3212.8,0.06223984]
[1720956849530,2.4256,3213.5,3212.9,0.05092718]
[1720956852730,2.4256,3213.5,3212.7,1.26001]
[1720956852929,2.4256,3213.5,3213.0,0.05086367]
[1720956853129,2.4256,3213.5,3212.8,0.62863868]
[1720956853330,2.4256,3213.5,3213.1,0.05080016]
[1720956853559,2.4256,3213.5,3212.8,0.62863868]
[1720956853763,2.4256,3213.5,3213.2,0.05070722]
[1720956854261,2.4256,3213.5,3213.3,0.05064372]
[1720956854644,2.4256,3213.5,3212.8,0.62863868]
[1720956854832,2.4256,3213.5,3213.4,0.05058022]
[1720956855166,2.4256,3213.5,3212.8,7.91863868]
[1720956855564,2.4256,3213.5,3212.9,0.05089775]
[1720956856161,4.06055264,3213.5,3212.9,0.05089775]
[1720956856532,2.4256,3213.5,3212.9,0.11313786]
[1720956856733,2.4256,3213.5,3213.0,0.80317765]
[1720956856933,2.4256,3213.5,3213.0,0.85401188]
[1720956861731,4.06109646,3213.5,3213.0,0.85401188]
[1720956862665,2.4256,3213.5,3213.0,0.85401188]
[1720956864830,4.06112775,3213.5,3213.0,0.85401188]
[1720956865266,2.4256,3213.5,3213.0,0.85401188]
[1720956866166,2.4256,3213.5,3213.1,0.38540119]
[1720956866372,2.4256,3213.5,3213.1,0.43617191]
[1720956867364,2.4256,3213.5,3213.1,0.49841217]
[1720956867738,2.4256,3213.5,3213.1,0.43617191]
[1720956874075,4.06093164,3213.5,3213.1,0.43617191]
[1720956874269,4.08803164,3213.4,3213.1,0.05077072]
[1720956874495,2.4527,3213.3,3213.1,0.05077072]
[1720956874809,4.08803164,3213.2,3212.9,3.0]
[1720956875098,2.4527,3213.2,3212.9,3.0]
[1720956877062,2.4527,3213.2,3212.5,4.872]
[1720956877264,2.4527,3213.2,3213.0,0.05084141]
[1720956877572,2.4527,3213.2,3212.6,3.7132]
[1720956877573,2.4527,3213.2,3213.1,0.0507779]
[1720956877870,2.4527,3213.2,3212.5,3.0]
[1720956878078,1.96235851,3213.4,3213.1,0.0507779]
[1720956878294,2.4527,3213.2,3212.4,7.29]
[1720956878593,2.4527,3213.0,3212.4,7.29]
[1720956879618,2.4527,3213.0,3212.5,3.0]
[1720956880459,1.63498657,3213.0,3212.5,3.0]
[1720956880661,2.4527,3212.9,3212.5,3.0]
[1720956883086,2.4527,3212.9,3212.3,3.0]
[1720956883287,2.4527,3212.9,3212.3,6.21677872]
[1720956885822,2.4227,3213.1,3212.3,8.15103211]
[1720956888930,2.4227,3213.1,3212.3,4.93425339]
[1720956892224,2.4227,3213.1,3212.4,0.04932885]
[1720956892393,2.4227,3213.1,3212.5,0.06224651]
[1720956892592,2.4227,3213.1,3212.6,0.04920179]
[1720956893983,2.4227,3213.1,3212.3,4.872]
[1720956894182,2.4227,3213.1,3212.4,1.08012885]
[1720956895688,2.4227,3213.1,3212.4,0.04932885]
[1720956895932,2.4227,3213.0,3212.4,0.04932885]
[1720956896221,2.4227,3212.8,3212.4,0.04932885]
[1720956896588,2.4227,3212.8,3212.1,7.29]
[1720956896589,2.4227,3212.7,3212.1,7.29]
[1720956896804,2.4227,3212.5,3212.2,0.04945593]
[1720956897483,2.4227,3212.5,3212.0,19.47]
[1720956897484,4.13452945,3212.5,3212.0,19.47]
[1720956897686,4.13414304,3212.5,3212.3,0.04939239]
[1720956897898,4.05629666,3212.5,3212.0,19.47]
[1720956898122,4.05629666,3212.5,3212.4,0.04774632]
[1720956898448,4.50249336,3212.5,3212.4,0.04774632]
[1720956898588,4.50249336,3212.5,3212.0,19.47]
[1720956898922,4.05629666,3212.5,3212.1,0.04793694]
[1720956899235,2.4227,3212.4,3212.1,0.04793694]
[1720956899382,0.48350083,3212.6,3212.1,0.04793694]
[1720956899383,2.4227,3212.2,3212.1,0.04793694]
[1720956899823,4.05629666,3212.2,3212.1,0.04793694]
[1720956900409,2.4227,3212.2,3212.1,0.04793694]
[1720956900989,2.4227,3212.2,3211.4,7.29]
[1720956901186,2.4227,3212.2,3211.5,3.04678314]
[1720956901385,0.07783845,3212.1,3211.5,3.04678314]
[1720956901815,2.4227,3212.2,3211.5,3.04678314]
[1720956903016,2.4227,3212.2,3211.5,3.10905379]
[1720956903451,2.4227,3212.2,3211.5,3.04678314]
[1720956904044,2.50053982,3212.2,3211.5,3.04678314]
[1720956904211,2.3246,3212.0,3211.5,3.04678314]
[1720956911120,2.3246,3212.0,3211.5,0.04678314]
[1720956911548,2.3246,3211.8,3211.5,0.04678314]
[1720956914791,2.3246,3212.0,3211.5,0.04678314]
[1720956915667,2.3246,3211.8,3211.5,0.04678314]
[1720956915844,2.3246,3211.6,3211.2,19.47]
[1720956916249,0.0778519,3211.5,3211.2,19.47]
[1720956916481,2.3246,3211.4,3210.7,7.29]
[1720956916782,0.07785727,3211.3,3210.7,7.29]
[1720956917162,2.3246,3211.2,3210.7,7.29]
[1720956917561,2.3246,3211.7,3210.7,9.966]
[1720956922400,2.3246,3211.7,3210.8,0.0473175]
[1720956926997,0.32587721,3211.6,3210.8,0.0473175]
[1720956933173,0.32587721,3211.6,3210.8,0.10959927]
[1720956933380,0.32587721,3211.6,3210.9,2.3244]
[1720956933605,0.32587721,3211.6,3211.1,2.3244]
[1720956933774,0.32587721,3211.6,3211.2,0.0622753]
[1720956933967,0.32587721,3211.6,3211.2,0.10936734]
[1720956936598,2.338,3212.2,3211.3,2.38667529]
[1720956936795,0.32586333,3212.1,3211.3,3.16426121]
[1720956939384,0.32586333,3212.1,3211.3,3.10198592]
[1720956939934,0.32586333,3212.1,3211.4,0.06226872]
[1720956940314,0.32586333,3212.1,3211.5,0.04687883]
[1720956940500,0.32586333,3212.1,3211.5,0.36329126]
[1720956941132,0.32586333,3212.1,3211.6,2.3244]
[1720956941437,0.32586333,3212.1,3211.7,0.0467517]
[1720956942309,1.95766555,3212.1,3211.7,0.0467517]
[1720956942510,0.32586333,3212.1,3211.7,0.0467517]
[1720956942715,0.32586333,3212.1,3211.8,0.06226865]
[1720956943118,0.32586333,3212.1,3212.0,2.3244]
[1720956943345,1.63378674,3212.7,3212.0,2.38665981]
[1720956943645,4.29854409,3213.0,3212.0,2.43322084]
[1720956943646,1.95966289,3212.8,3212.0,2.43322084]
[1720956944002,1.63378674,3212.7,3212.0,2.43322084]
[1720956944231,1.63378674,3212.7,3212.1,0.24332208]
[1720956944434,1.63378674,3212.7,3212.1,0.28980479]
[1720956945208,1.63378674,3212.6,3212.1,0.28980479]
[1720956945404,1.63378674,3212.7,3212.1,0.28980479]
[1720956945912,1.63322153,3212.7,3212.1,0.28980479]
[1720956946111,1.63322153,3212.7,3212.2,0.26142048]
[1720956946329,1.63322151,3212.7,3212.2,0.26142048]
[1720956946541,1.63322151,3212.7,3212.3,0.04635049]
[1720956946933,1.63322151,3212.7,3212.2,0.26142048]
[1720956947145,1.63322151,3212.7,3212.4,0.04628695]
[1720956947349,1.63322151,3212.7,3212.3,0.04635049]
[1720956947547,1.63322151,3212.7,3212.5,0.04622342]
[1720956947748,1.63322151,3212.7,3212.4,0.04628695]
[1720956948052,1.63322151,3212.7,3212.0,2.3244]
[1720956948053,1.63322151,3212.7,3212.5,0.04622342]
[1720956948262,1.63322151,3212.7,3212.0,2.3244]
[1720956948474,1.63322151,3212.7,3212.6,0.04615989]
[1720956948626,1.63322151,3212.7,3212.1,0.23244]
[1720956948821,1.63322151,3212.7,3212.6,0.04615989]
[1720956949133,1.95843278,3212.8,3212.1,0.23244]
[1720956949460,1.63255663,3212.7,3212.2,0.255684]
[1720956949664,1.63255663,3212.7,3212.2,0.30209803]
[1720956949965,1.63255663,3212.6,3212.2,0.04641403]
[1720956950117,1.63255663,3212.4,3212.2,0.04641403]
[1720956950322,1.63255663,3212.4,3211.7,2.2837]
[1720956950820,1.63255663,3212.4,3211.8,0.04659503]
[1720956951221,1.63255663,3212.4,3211.6,3.0]
[1720956951547,2.0346671,3212.4,3211.9,0.04653147]
[1720956951755,2.0346671,3212.4,3211.6,3.0]
[1720956952124,1.63256144,3212.4,3211.6,3.0]
[1720956952378,1.6325503,3212.4,3211.7,0.04665859]
[1720956952524,1.63255025,3212.4,3211.7,0.04665859]
[1720956953429,4.02105025,3212.5,3211.7,0.04665859]
[1720956953767,2.3885,3212.5,3211.7,0.04665859]
[1720956954228,2.3885,3212.5,3211.7,1.49589445]
[1720956958446,1.6321754,3212.6,3211.7,1.49589445]
[1720956958864,2.71437615,3212.8,3211.7,1.49589445]
[1720956959068,1.63191575,3212.7,3211.7,1.49589445]
[1720956959269,2.71437615,3212.8,3211.7,1.49589445]
[1720956959571,1.63186195,3212.7,3211.8,0.44958945]
[1720956959747,1.63186195,3212.7,3211.9,0.04654559]
[1720956960346,1.63186195,3212.6,3212.0,2.2837]
[1720956960552,1.63186195,3212.7,3212.1,0.04641849]
[1720956961462,4.34612646,3212.8,3212.1,0.04641849]
[1720956961661,1.63175031,3212.7,3212.1,0.04641849]
[1720956961974,4.78073911,3212.8,3212.1,0.04641849]
[1720956962566,1.63175031,3212.7,3212.1,0.04641849]
[1720956963244,1.63175031,3212.6,3212.1,0.04641849]
[1720956963597,1.63175031,3212.6,3212.2,0.04636395]
[1720956963791,1.63175031,3212.6,3211.8,2.2837]
[1720956963792,0.16317503,3212.5,3211.8,2.2837]
[1720956963969,1.63175031,3212.6,3211.9,0.04655459]
[1720956964556,1.63200348,3212.6,3211.9,0.04655459]
[1720956964759,1.63198212,3212.7,3211.9,0.04655459]
[1720956966172,1.63198212,3212.7,3212.0,2.3065]
[1720956966370,1.63198212,3212.7,3212.1,0.04642749]
[1720956967486,2.06661795,3212.7,3212.1,0.04642749]
[1720956967847,2.06675593,3212.7,3212.1,0.04642749]
[1720956968163,1.6321201,3212.6,3212.1,0.04642749]
[1720956968361,4.0055201,3212.5,3211.7,2.3065]
[1720956968560,4.0055201,3212.5,3211.8,0.04661815]
[1720956968769,4.44953569,3212.5,3211.8,0.04661815]
[1720956969693,1.6321201,3212.3,3211.8,0.04661815]
[1720956969989,3.9373201,3212.2,3211.6,3.0]
[1720956970293,3.9373201,3212.2,3211.7,0.04532371]
[1720956970586,2.02585211,3212.1,3211.5,10.39]
[1720956970780,2.02585211,3212.1,3211.6,0.04538728]
[1720956971295,2.02646069,3212.1,3211.6,0.04538728]
[1720956971657,2.02659211,3212.1,3211.6,0.04538728]
[1720956972769,0.39373201,3212.1,3211.6,0.04538728]
[1720956973614,2.3052,3211.9,3211.6,0.04538728]
[1720956973891,3.9380601,3211.9,3211.3,19.47]
[1720956974390,1.63351616,3211.8,3211.4,0.04551442]
[1720956974595,2.3052,3211.9,3211.4,0.04551442]
[1720956974596,3.93871616,3211.9,3211.4,0.04551442]
[1720956974894,2.02738778,3211.8,3211.4,0.04551442]
[1720956975193,2.02738778,3211.8,3211.2,10.29]
[1720956975194,1.63351616,3211.7,3211.2,10.29]
[1720956975356,1.63351616,3211.7,3211.3,0.04560173]
[1720956975556,1.63351616,3211.7,3211.2,10.29]
[1720956975752,1.63351616,3211.7,3211.3,0.04560173]
[1720956975985,1.61492596,3211.7,3211.2,10.29]
[1720956976171,1.61492596,3211.7,3211.3,0.04560173]
[1720956976352,1.61492596,3211.7,3211.2,10.29]
[1720956976551,1.61492596,3211.8,3211.2,10.29]
[1720956976759,1.61492596,3211.8,3211.3,0.04560173]
[1720956976992,2.61279855,3212.4,3211.3,0.04560173]
[1720956976993,2.3052,3212.2,3211.4,2.315]
[1720956977293,2.3052,3212.2,3211.5,0.04551246]
[1720956977690,4.26574818,3212.2,3211.5,0.04551246]
[1720956980812,2.3052,3212.2,3211.5,0.04551246]
[1720956980982,4.26614816,3212.2,3211.5,0.28156371]
[1720956981303,1.96094816,3212.2,3211.5,0.28156371]
[1720956982104,1.96094816,3212.3,3211.5,0.28156371]
[1720956982289,1.96094816,3212.2,3211.5,0.28156371]
[1720956983217,1.63406506,3211.9,3211.5,0.28156371]
[1720956983419,1.63406506,3211.9,3211.6,0.25965637]
[1720956983627,1.63404335,3211.9,3211.7,0.04538533]
[1720956983999,1.63404335,3211.9,3211.4,2.315]
[1720956984196,0.32587593,3212.4,3211.5,0.04551246]
[1720956984517,1.63399065,3211.7,3211.5,0.04551246]
[1720956984720,2.4478,3211.8,3211.5,0.04551246]
[1720956984941,1.63409767,3211.7,3211.5,0.04551246]
[1720956985127,4.08189767,3211.8,3211.2,10.29]
[1720956985585,1.63409767,3211.7,3211.3,0.0456345]
[1720956985782,4.08189767,3211.8,3211.2,10.29]
[1720956985981,4.08189767,3211.8,3211.3,0.0456345]
[1720956986392,4.08189767,3211.8,3211.2,10.29]
[1720956986628,4.08189767,3211.8,3211.3,0.0456345]
[1720956986929,4.08189767,3211.8,3211.2,11.55051]
[1720956987091,4.08189767,3211.8,3211.4,0.04557092]
[1720956987295,1.63409767,3211.8,3211.3,0.0456345]
[1720956987596,1.63372091,3211.8,3211.4,0.04557092]
[1720956988025,1.63371778,3211.8,3211.4,0.04557092]
[1720956990850,1.63367471,3211.8,3211.4,0.04557092]
[1720956992139,1.63367471,3211.8,3211.5,2.3151]
[1720956992518,1.63367471,3211.8,3211.6,0.04544699]
[1720956994039,1.63367471,3211.9,3211.6,0.04544699]
[1720956994355,1.63373427,3211.9,3211.6,0.04544699]
[1720956994918,2.77368257,3212.1,3211.6,0.28150169]
[1720956994919,1.63373427,3212.0,3211.6,0.28150169]
[1720956995113,0.32588257,3212.1,3211.7,2.3151]
[1720956995546,0.32588257,3212.1,3211.8,0.04531987]
[1720956995958,1.63373427,3212.0,3211.8,0.04531987]
[1720956996457,1.63373427,3212.0,3211.6,0.2360547]
[1720956996458,1.63373427,3212.0,3211.5,2.3151]
[1720956996618,1.63373427,3212.0,3211.6,0.23151]
[1720956996812,1.63373427,3212.0,3211.6,0.27695699]
[1720956997450,0.32588257,3212.1,3211.6,0.04544699]
[1720956997652,0.32588257,3212.1,3211.3,3.70622445]
[1720956997653,1.63398026,3212.0,3211.3,3.70622445]
[1720956997961,1.63390226,3212.0,3211.4,0.04557413]
[1720956998117,1.95978483,3212.1,3211.4,0.04557413]
[1720956999333,1.63390226,3212.0,3211.4,0.04557413]
[1720956999565,1.63390226,3212.0,3211.5,0.37517986]
[1720956999949,1.95978483,3212.1,3211.6,0.04544249]
[1720957000673,1.95985415,3212.1,3211.6,0.04544249]
[1720957001457,1.63397158,3212.0,3211.6,0.04544249]
[1720957004081,1.63421159,3212.0,3211.6,0.04544249]
[1720957006747,4.08951159,3211.9,3211.6,0.04544249]
[1720957007281,1.63457475,3211.8,3211.2,10.29]
[1720957007455,1.63457475,3211.8,3211.3,0.04562229]
[1720957007659,1.63457475,3211.8,3211.2,10.29]
[1720957007660,1.63457475,3211.7,3211.2,10.29]
[1720957007862,1.63457475,3211.7,3211.3,0.04562229]
[1720957008067,1.63457475,3211.7,3211.2,10.29]
[1720957008251,1.63457475,3211.7,3211.3,0.04562099]
[1720957008450,1.63457475,3211.6,3211.2,10.29]
[1720957008676,1.63457475,3211.6,3211.3,0.04562099]
[1720957008886,1.63457475,3211.6,3211.2,10.29]
[1720957009111,1.63457475,3211.6,3211.3,0.04562099]
[1720957009270,1.63457475,3211.6,3211.2,11.54597]
[1720957009578,1.63457475,3211.6,3211.3,0.04562099]
[1720957010084,1.63457475,3211.6,3211.4,0.04555742]
[1720957010276,1.63457475,3211.6,3211.2,11.54597]
[1720957010615,1.63527808,3211.6,3211.3,0.04562099]
[1720957010968,2.4553,3211.9,3211.0,2.2697]
[1720957011169,1.63529449,3211.6,3211.1,0.52697]
[1720957011401,1.63529449,3211.6,3211.1,3.57271816]
[1720957012482,1.63529449,3211.7,3211.1,3.57271816]
[1720957013373,1.63529449,3211.9,3211.2,2.33197755]
[1720957013572,1.63529449,3211.9,3211.4,2.2697]
[1720957013868,1.63582885,3211.9,3211.5,0.04550861]
[1720957016009,1.63582885,3211.8,3211.5,0.04550861]
[1720957016892,1.63582885,3211.9,3211.5,0.04550861]
[1720957017089,1.63632569,3211.8,3211.5,0.04550861]
[1720957017291,1.63632569,3211.8,3211.6,0.23152086]
[1720957017588,1.63632569,3211.8,3211.7,0.04538148]
[1720957017792,1.63632569,3211.9,3211.7,0.04538148]
[1720957018910,1.63632569,3212.0,3211.7,0.04538148]
[1720957019501,1.63632569,3212.0,3211.8,2.2697]
[1720957019709,1.63632569,3212.1,3211.9,0.28298935]
[1720957019884,1.63632569,3212.2,3211.9,0.04525436]
[1720957020084,1.63632569,3212.2,3211.8,2.2697]
[1720957020385,1.6360007,3212.2,3211.9,0.04525436]
[1720957021092,1.6360007,3212.1,3211.9,0.04525436]
[1720957022299,0.32587902,3212.5,3211.9,0.04525436]
[1720957022499,1.63587121,3212.1,3211.9,0.04525436]
[1720957022997,1.63585163,3212.1,3211.9,0.04525436]
[1720957023431,1.63572266,3212.1,3211.9,0.04525436]
[1720957023638,1.63572266,3212.2,3211.9,0.04525436]
[1720957026011,1.6353963,3212.3,3211.9,0.04525436]
[1720957026346,1.6353683,3212.3,3211.9,0.04525436]
[1720957027145,1.6353683,3212.3,3211.9,0.2767498]
[1720957028257,1.6353683,3212.4,3212.0,2.3118]
[1720957028607,1.6353683,3212.4,3212.1,0.04507076]
[1720957029021,1.96124732,3212.5,3212.1,0.04507076]
[1720957029217,0.32587902,3212.5,3212.2,0.23568708]
[1720957029710,0.32587902,3212.5,3212.3,0.04494368]
[1720957029935,0.32587902,3212.5,3212.2,2.3118]
[1720957030156,0.32587902,3212.5,3212.3,0.04494368]
[1720957030348,0.32587902,3212.5,3212.2,2.3118]
[1720957030662,0.32587902,3212.5,3212.3,0.04494368]
[1720957030944,0.32587902,3212.5,3212.3,0.23567437]
[1720957031121,0.32587902,3212.5,3212.4,0.04488014]
[1720957032557,0.32587902,3212.5,3212.2,2.3118]
[1720957032730,0.32587902,3212.5,3212.3,0.04494368]
[1720957033053,0.32587902,3212.5,3212.2,2.3118]
[1720957033225,0.32587902,3212.5,3212.4,0.04488014]
[1720957033420,0.32587902,3212.5,3212.3,0.04494368]
[1720957033625,0.32587902,3212.5,3212.4,0.04488014]
[1720957034091,0.32587902,3212.5,3212.2,2.3118]
[1720957034300,0.32587902,3212.5,3212.4,0.04488014]
[1720957034459,0.32587902,3212.5,3212.3,0.04494368]
[1720957034660,0.32587902,3212.5,3212.4,0.04488014]
[1720957035050,0.32587902,3212.5,3212.2,2.3118]
[1720957035255,0.32587902,3212.5,3212.4,0.04486024]
[1720957035495,0.32587902,3212.5,3212.3,0.04492378]
[1720957035678,0.32587902,3212.5,3211.9,2.3118]
[1720957036003,0.32587902,3212.5,3211.9,2.84298]
[1720957036284,0.32587902,3212.5,3212.0,0.04511441]
[1720957042907,1.95902533,3212.5,3212.0,0.04511441]
[1720957043067,1.95902533,3212.5,3211.7,5.3118]
[1720957043268,1.95902533,3212.5,3212.1,0.04505086]
[1720957043489,1.95902533,3212.5,3211.7,5.3118]
[1720957043694,0.32587902,3212.5,3211.8,1.44748]
[1720957043896,1.95911459,3212.5,3211.8,1.44748]
[1720957044217,1.95911459,3212.5,3211.9,0.04517796]
[1720957045775,0.32587902,3212.5,3211.9,0.04517796]
[1720957045973,1.95914686,3212.5,3211.7,5.3118]
[1720957046313,1.95914686,3212.5,3211.8,1.30545234]
[1720957049225,1.95919528,3212.5,3211.8,1.30545234]
[1720957049595,0.32587902,3212.5,3211.8,1.30545234]
[1720957049829,1.95923972,3212.5,3211.8,1.30545234]
[1720957052444,2.3304,3212.4,3211.8,1.30545234]
[1720957053090,1.63343348,3212.3,3211.8,0.04527234]
[1720957053308,3.96383348,3212.0,3211.6,7.29]
[1720957053641,3.96383348,3212.0,3211.7,0.0438639]
[1720957054103,2.3304,3212.0,3211.7,0.0438639]
[1720957054927,2.3304,3212.0,3211.7,2.72425029]
[1720957055141,2.3304,3212.2,3211.7,2.72425029]
[1720957059304,3.9652791,3212.2,3211.7,2.72425029]
[1720957060436,2.3304,3212.2,3211.7,2.72425029]
[1720957060622,3.9652791,3212.2,3211.7,2.72425029]
[1720957060932,3.9652791,3212.2,3211.8,1.00142503]
[1720957061107,3.9652791,3212.2,3211.9,0.04373742]
[1720957061303,1.6348791,3212.2,3211.9,0.04373742]
[1720957061507,4.61813394,3212.5,3211.9,2.29893742]
[1720957061508,1.6348791,3212.3,3211.9,2.29893742]
[1720957061820,2.65627902,3212.5,3212.0,0.33003625]
[1720957061821,1.6348791,3212.4,3212.0,0.33003625]
[1720957062024,1.96075812,3212.5,3212.0,0.33003625]
[1720957062230,0.32587902,3212.5,3212.1,0.04361032]
[1720957072019,1.96106267,3212.5,3212.1,0.04361032]
[1720957072251,0.32587902,3212.5,3212.1,0.04361032]
[1720957073141,1.96106267,3212.5,3212.1,0.04361032]
[1720957073344,0.32587902,3212.5,3212.1,0.30649498]
[1720957077365,1.96092892,3212.5,3212.1,0.30649498]
[1720957078547,1.96108347,3212.5,3212.1,0.30649498]
[1720957078874,1.96108342,3212.5,3212.1,0.30649498]
[1720957081088,0.32587902,3212.5,3212.1,0.30649498]
[1720957081373,1.96109814,3212.5,3212.1,0.30649498]
[1720957084374,1.96108237,3212.5,3212.1,0.30649498]
[1720957084936,1.63520335,3212.4,3212.1,0.30649498]
[1720957085131,4.01700335,3212.4,3212.1,0.04361032]
[1720957085336,1.63520335,3212.3,3212.1,0.04361032]
[1720957085538,1.63520335,3212.2,3211.7,3.0]
[1720957085771,1.63520335,3212.2,3211.8,0.04379336]
[1720957085947,1.63520335,3212.3,3211.8,0.04379336]
[1720957086550,1.63520335,3212.2,3211.8,0.04379336]
[1720957086870,1.63520335,3212.2,3211.8,1.09283839]
[1720957087076,1.63520335,3212.2,3211.8,4.09283839]
[1720957087371,1.63520335,3212.2,3211.8,1.09283839]
[1720957087573,2.3818,3212.4,3211.8,1.09283839]
[1720957087741,1.63537417,3212.2,3211.8,1.09283839]
[1720957087934,1.63537417,3212.2,3211.8,0.04379336]
[1720957089046,1.63537417,3212.3,3211.8,0.04379336]
[1720957089235,1.63537417,3212.2,3211.8,0.04379336]
[1720957089563,1.63537417,3212.2,3211.8,1.0771727]
[1720957089754,1.63537417,3212.3,3211.8,3.4050727]
[1720957090891,1.63522988,3212.3,3211.8,3.4050727]
[1720957091095,1.63522988,3212.3,3211.9,0.64050727]
[1720957091507,1.63522988,3212.3,3212.0,0.04367961]
[1720957094397,4.22248301,3212.4,3211.7,3.0]
[1720957094583,1.63540731,3212.0,3211.8,0.04379525]
[1720957095194,1.63540731,3212.1,3211.8,0.04379525]
[1720957096603,1.63540731,3212.2,3211.8,1.07717478]
[1720957096906,1.63540731,3212.2,3211.8,3.50827478]
[1720957097085,1.63540731,3212.3,3211.8,3.50827478]
[1720957097404,2.2602,3212.4,3211.8,3.57053742]
[1720957097563,1.63501959,3212.3,3211.9,0.65705374]
[1720957097772,1.63501959,3212.3,3212.0,0.04366814]
[1720957100017,1.63501959,3212.2,3212.0,0.04366814]
[1720957100178,2.2602,3212.1,3212.0,0.04366814]
[1720957100379,2.2602,3212.1,3211.8,1.03337953]
[1720957100579,2.2602,3212.1,3211.9,0.0437317]
[1720957102197,1.63547629,3212.2,3211.9,0.0437317]
[1720957102391,1.63547629,3212.2,3211.9,0.45144282]
[1720957103511,3.89567629,3212.4,3211.9,0.45144282]
[1720957103923,2.2602,3212.4,3211.9,0.45144282]
[1720957104309,1.63532814,3212.3,3211.9,0.45144282]
[1720957105538,1.63532814,3212.2,3211.9,0.45144282]
[1720957105732,1.63532814,3212.3,3211.9,0.45144282]
[1720957107400,1.63544548,3212.3,3211.9,0.45144282]
[1720957107716,1.63544551,3212.3,3211.9,0.45144282]
[1720957110444,1.63544551,3212.2,3211.9,0.45144282]
[1720957110748,1.63561883,3212.2,3211.9,0.45144282]
[1720957112542,1.63561883,3212.0,3211.9,0.0437317]
[1720957112847,4.12331883,3212.0,3211.9,0.0437317]
[1720957113051,2.4877,3212.0,3211.7,3.0]
[1720957113249,1.63589849,3211.8,3211.6,7.29]
[1720957113435,1.63591763,3211.7,3211.3,3.0]
[1720957113623,2.4877,3211.6,3211.3,3.0]
[1720957115625,2.4877,3211.6,3211.1,7.29]
[1720957117220,2.4877,3211.6,3211.5,19.51399168]
[1720957117637,2.4877,3211.6,3211.5,0.04399168]
[1720957117953,2.4877,3211.6,3211.2,3.0]
[1720957118155,4.12232289,3211.6,3211.5,0.04399168]
[1720957118355,4.12232289,3211.6,3211.2,3.0]
[1720957118559,4.12232289,3211.6,3211.5,0.04399168]
[1720957118753,4.12232289,3211.6,3211.2,3.0]
[1720957118925,4.12232289,3211.6,3211.5,0.04399168]
[1720957119259,2.4877,3211.6,3211.5,0.04399168]
[1720957119426,2.4877,3211.6,3211.2,3.0]
[1720957119626,2.4877,3211.6,3211.3,1.07315007]
[1720957127255,4.00393596,3211.8,3211.3,1.07315007]
[1720957127460,2.3704,3211.8,3211.3,1.07315007]
[1720957128447,4.00389765,3211.8,3211.3,1.07315007]
[1720957129675,4.00389765,3211.8,3211.4,0.40731501]
[1720957129882,1.63349765,3211.6,3211.3,1.07315007]
[1720957130081,1.63349765,3211.5,3211.3,1.029]
[1720957130245,2.3704,3212.0,3211.3,1.029]
[1720957130446,0.32592585,3212.1,3211.1,7.29]
[1720957130447,2.3704,3211.4,3211.1,7.29]
[1720957130758,4.00412172,3211.4,3211.1,7.29]
[1720957131786,4.00393927,3211.4,3211.1,7.29]
[1720957132286,4.00393927,3211.4,3211.2,0.0442385]
[1720957133579,2.3704,3211.4,3211.2,0.0442385]
[1720957133987,4.00347026,3211.4,3211.2,0.0442385]
[1720957135651,2.3704,3211.3,3211.2,0.0442385]
[1720957135851,2.3704,3211.3,3210.7,3.0]
[1720957136079,2.3704,3211.3,3210.8,0.04449286]
[1720957136782,2.3704,3211.3,3210.7,6.21677872]
[1720957136985,2.3704,3211.3,3210.9,0.04445031]
[1720957137173,2.3704,3211.3,3210.8,0.0445139]
[1720957137361,2.3704,3211.3,3211.0,0.04438672]
[1720957137685,2.3704,3211.3,3211.1,0.04432313]
[1720957138051,2.3704,3211.3,3210.7,6.21677872]
[1720957138253,2.3704,3211.3,3210.8,0.0445139]
[1720957138453,2.3704,3211.3,3210.7,6.21677872]
[1720957138656,2.3704,3211.3,3210.8,1.70619177]
[1720957156519,4.00478503,3211.3,3210.8,1.70619177]
[1720957157437,2.3704,3211.3,3210.8,1.70619177]
[1720957157589,2.4027,3211.2,3210.8,1.70619177]
[1720957157788,4.03753252,3211.2,3210.8,0.0445139]
[1720957158082,4.03753252,3211.2,3210.7,3.0]
[1720957158307,4.03753252,3211.2,3210.9,0.04445731]
[1720957158512,4.03753252,3211.2,3210.8,0.0445209]
[1720957158711,4.03753252,3211.1,3211.0,0.04439372]
[1720957159219,4.03753252,3211.1,3210.7,6.1]
[1720957159220,2.4027,3211.1,3210.7,6.1]
[1720957159400,4.03842475,3211.1,3211.0,0.0444033]
[1720957159604,4.03842475,3211.1,3210.7,6.1]
[1720957159802,4.03842475,3211.1,3210.7,3.1]
[1720957159990,2.4027,3211.1,3211.0,0.0444033]